[Event "Karnataka State Open-ch 2018"]
[Site "Bengaluru"]
[Date "2018.04.16"]
[Round "6"]
[White "Kishan, Gangolli"]
[Black "Manasa H R"]
[Result "1-0"]
[ECO "D35"]
[WhiteElo "1974"]
[BlackElo "1615"]
[Annotator "NA RC"]
[PlyCount "30"]
[EventDate "2018.??.??"]
[EventType "swiss"]
[EventCountry "IND"]
[SourceTitle "playchess.com"]
[Source "ChessBase"]
[SourceQuality "1"]
[TimeControl "5400+30"]

1. d4 d5 2. c4 e6 3. Nc3 Nf6 4. cxd5 exd5 5. Bg5 Be7 6. e3 c6 7. Bd3 Nbd7 8. Qc2 O-O 9. Nf3 Re8 10. O-O Nf8 11. Rab1 Bg4 $14 {LiveBook: 20 Games} 12. Ne5 Bh5 13. b4 a6 14. a4 Rc8 15. Bf5 Ne6 1-0

[Event "Karnataka State Open-ch 2018"]
[Site "Bengaluru"]
[Date "2018.04.16"]
[Round "6"]
[White "Sudarshan Bhat"]
[Black "Nitish Bhat"]
[Result "1-0"]
[ECO "B22"]
[WhiteElo "1892"]
[BlackElo "1637"]
[Annotator "NA RC"]
[PlyCount "86"]
[EventDate "2018.??.??"]
[EventType "swiss"]
[EventCountry "IND"]
[SourceTitle "playchess.com"]
[Source "ChessBase"]
[SourceQuality "1"]
[TimeControl "5400+30"]

{[%evp 8,84,15,32767,32767,32767,32767,32767,32767,32767,24,32767,32767,44,28,30,79,63,68,68,32767,32767,32767,32767,32767,55,32767,32767,32767,32767,32767,46,83,14,32,0,19,32767,16,4,79,32,103,34,89,31,93,48,106,81,86,91,81,99,117,127,233,145,105,32767,32767,223,173,249,308,335,590,361,312,372,333,321,309,222,377,440,450,449,512]} 1. e4 {[%emt 0:00:00]} c5 {[%emt 0:00:06]} 2. c3 {[%emt 0:00:11]} Nf6 {[%emt 0:00:04]} 3. e5 {[%emt 0:00:17]} Nd5 {[%emt 0:00:04]} 4. d4 {[%emt 0:00:14]} e6 {[%emt 0:00:27]} 5. Nf3 {[%emt 0:03:15]} cxd4 {[%emt 0:00:04]} 6. cxd4 {[%emt 0:00:09]} Nc6 {[%emt 0:00:20]} 7. a3 {[%emt 0:03:13]} d6 {[%emt 0:00:34]} 8. Bd3 {[%emt 0:00:57]} Be7 {[%emt 0:00:25] LiveBook: 60 Games} 9. O-O {[%emt 0:01:00]} O-O {[%emt 0:03:14]} 10. Qe2 {[%emt 0:02:13]} dxe5 {[%emt 0:00:22]} 11. dxe5 {[%emt 0:00:36]} f6 {[%emt 0:01:05] B22: Sicilian: 2 c3} (11... Qa5 12. Bd2 Qa4 13. Nc3 Nxc3 14. Bxc3 Rd8 15. b4 Nb8 16. Rfd1 g6 17. Nd2 Bd7 18. Ne4 Bc6 19. Nf6+ Kg7 20. Bc2 Qa6 21. Qg4 Nd7 22. Qh4 h6 23. Rd3 Bf8 24. Qxh6+ Kxh6 25. Rh3+ Kg5 26. Bd2# {1-0 (26) Haznedaroglu,K (2428)-Vucinic,G (2253) Skopje 2013}) 12. exf6 {[%emt 0:05:30]} ({Much weaker is} 12. Qe4 f5 $11) 12... Bxf6 {[%emt 0:01:22] [#]} 13. Nc3 $1 $146 {[%emt 0:11:47]} ({Predecessor:} 13. Rd1 Qb6 14. Ng5 Bxg5 15. Bxg5 h6 16. Bc1 Nd4 17. Qe4 Nf6 18. Qg6 Rf7 19. Bxh6 {1-0 (29) Giliazitdinov,E (2073)-Lukashov,V (2099) Novosibirsk 2011}) 13... Nxc3 {[%emt 0:01:08]} 14. bxc3 {[%emt 0:00:11]} e5 {[%emt 0:11:13]} 15. Qe4 {[%emt 0:05:46]} g6 {[%emt 0:00:46]} 16. Bh6 {[%emt 0:02:14]} Bg7 {[%emt 0:02:52]} 17. Bc4+ {[%emt 0:04:54]} Kh8 {[%emt 0:00:02]} 18. Bxg7+ {[%emt 0:00:16]} Kxg7 {[%emt 0:00:04]} 19. Nxe5 {[%emt 0:11:08]} Qe7 {[%emt 0:01:20]} 20. f4 {[%emt 0:05:05]} ({White should try} 20. Rae1 $16) 20... Qc5+ {[%emt 0:00:46]} 21. Kh1 {[%emt 0:00:51]} Bf5 {[%emt 0:00:12]} 22. Qd5 {[%emt 0:01:52]} Qxd5 {[%emt 0:03:53]} 23. Bxd5 {[%emt 0:00:05]} Rac8 {[%emt 0:02:29]} (23... Nxe5 $11 {keeps the balance.} 24. fxe5 Rac8) 24. c4 {[%emt 0:06:36]} ({White should try} 24. Bxc6 $16 bxc6 25. Kg1) 24... Rc7 {[%emt 0:00:34]} (24... Nxe5 $11 {keeps the balance.} 25. fxe5 Rfe8) 25. Rad1 {[%emt 0:02:02]} (25. Bxc6 $16 bxc6 26. Rad1) 25... h5 {[%emt 0:06:34]} (25... Nxe5 $11 {remains equal.} 26. fxe5 Re8) 26. h3 {[%emt 0:01:29]} ({White should try} 26. Bxc6 $16 bxc6 27. h3) 26... Ne7 {[%emt 0:04:09]} (26... Nxe5 $11 27. fxe5 Re8) 27. Rd2 {[%emt 0:06:22]} b6 {[%emt 0:00:31]} 28. Kh2 {[%emt 0:02:12]} Bc8 {[%emt 0:00:21]} 29. g4 {[%emt 0:03:33]} hxg4 {[%emt 0:00:12]} 30. hxg4 {[%emt 0:00:03]} Rc5 {[%emt 0:00:36]} 31. Kg3 {[%emt 0:01:05]} b5 {[%emt 0:04:51]} (31... Ra5 $16 {might work better.} 32. Rf3 Re8) 32. Re1 {[%emt 0:05:46]} Rd8 {[%emt 0:03:33]} 33. Red1 {[%emt 0:06:56]} Ba6 {[%emt 0:02:49]} 34. Nd3 {[%emt 0:01:08]} Rc7 {[%emt 0:00:16]} 35. Nb4 {[%emt 0:00:17]} Rd6 {[%emt 0:03:49]} 36. Bf3 {[%emt 0:02:56]} Re6 $2 {[%emt 0:00:28]} (36... Rxd2 {is a better defense.} 37. Rxd2 Bb7 38. cxb5 Bxf3) 37. Rd6 {[%emt 0:01:13]} Rxd6 {[%emt 0:00:56]} 38. Rxd6 {[%emt 0:00:02]} Bb7 {[%emt 0:00:44]} 39. Bxb7 {[%emt 0:00:47]} Rxb7 {[%emt 0:00:02]} 40. cxb5 {[%emt 0:00:15]} Nc8 $2 {[%emt 0:01:26]} (40... Rxb5 41. Rd7 Kf8 42. Rxa7 g5 43. fxg5 Rxg5) 41. Rc6 {[%emt 0:01:30]} Ne7 {[%emt 0:00:35]} 42. Rc5 {[%emt 0:00:03]} Kf7 $18 {[%emt 0:00:55]} 43. Nc6 {[%emt 0:01:54]} Ke8 1-0

[Event "Karnataka State Open-ch 2018"]
[Site "Bengaluru"]
[Date "2018.04.16"]
[Round "6"]
[White "Sameer, Ghotane"]
[Black "Shreyash, A Kulkarni"]
[Result "1-0"]
[ECO "E98"]
[WhiteElo "1881"]
[BlackElo "1605"]
[Annotator "NA RC"]
[PlyCount "81"]
[EventDate "2018.??.??"]
[EventType "swiss"]
[EventCountry "IND"]
[SourceTitle "playchess.com"]
[Source "ChessBase"]
[SourceQuality "1"]
[TimeControl "5400+30"]

{[%evp 17,79,48,32767,32767,32767,32767,32767,32767,89,32767,100,32767,129,107,111,78,106,77,94,91,32767,32767,262,32767,32767,32767,186,32767,32767,199,220,32767,32767,193,32767,277,771,32767,32767,32767,32767,32767,32767,32767,32767,32767,32767,382,431,435,435,428,470,432,406,431,935,918,1002,883,917,1180,4822,29971]} 1. d4 {[%emt 0:00:31]} Nf6 {[%emt 0:00:27]} 2. c4 {[%emt 0:01:06]} g6 {[%emt 0:00:06]} 3. Nc3 {[%emt 0:00:02]} Bg7 {[%emt 0:00:09]} 4. e4 {[%emt 0:00:01]} d6 {[%emt 0:00:07]} 5. Nf3 {[%emt 0:00:02]} O-O {[%emt 0:00:09]} 6. Be2 {[%emt 0:00:04]} e5 {[%emt 0:00:50]} 7. O-O {[%emt 0:00:06]} Nc6 {[%emt 0:00:29]} 8. d5 {[%emt 0:00:04]} Ne7 {[%emt 0:00:04]} 9. Ne1 {[%emt 0:00:17]} Nd7 {[%emt 0:03:33]} 10. Be3 {[%emt 0:00:07]} f5 {[%emt 0:00:20]} 11. f3 {[%emt 0:00:05]} f4 {[%emt 0:00:17]} 12. Bf2 {[%emt 0:00:05]} g5 {[%emt 0:03:08] LiveBook: 1417 Games} 13. Rc1 {[%emt 0:03:03]} Nf6 {[%emt 0:02:59]} 14. c5 {[%emt 0:00:36]} Ne8 {[%emt 0:00:53]} 15. cxd6 {[%emt 0:01:22] E99: King's Indian: Classical Main Line: 9 Ne1 Nd7 10 f3 f5} cxd6 {[%emt 0:02:45]} 16. Nd3 {[%emt 0:03:40]} (16. Nb5 b6 17. Nd3 Rf6 18. Nb4 Rg6 19. Nc6 Qd7 20. Nbxa7 Nxc6 21. Nxc8 Qxc8 22. dxc6 Kh8 {1-0 (39) Fedorovsky,M (2498)-Matt,F (2326) Austria 2017}) 16... h5 $146 {[%emt 0:02:46]} ({Find the theoretical novelty and annotate with similar games:} 16... Ng6 17. a4 h5 18. Kh1 Rf7 19. Nb5 {½-½ (44) Weerawardane,R (2120)-Tissir,M (2388) Baku 2016}) 17. Nb5 {[%emt 0:02:29]} Bd7 {[%emt 0:02:05]} 18. Qb3 {[%emt 0:01:27]} ({But not} 18. Nxa7 Qb8 $15) 18... g4 {[%emt 0:01:49]} 19. Nxa7 {[%emt 0:00:47]} g3 {[%emt 0:01:14]} (19... Qb8 $16 {is a better defense.}) 20. Bb6 {[%emt 0:00:25]} Qb8 {[%emt 0:01:00]} 21. Nc6 {[%emt 0:00:23]} bxc6 {[%emt 0:05:18]} 22. dxc6+ {[%emt 0:00:19]} Be6 {[%emt 0:00:07]} 23. Qxe6+ {[%emt 0:00:59]} Rf7 {[%emt 0:00:04]} 24. Qb3 {[%emt 0:02:37]} Ra6 {[%emt 0:00:48]} 25. c7 {[%emt 0:00:38]} Qb7 {[%emt 0:14:53] [#]} 26. Nxe5 (26. Nc5 $142 $1 {[%mdl 512]} dxc5 27. Bxa6 Qxa6 28. Rfd1) 26... dxe5 $2 (26... Qxb6+ 27. Qxb6 Rxb6) 27. Bc5 {[%emt 0:46:51]} Qxb3 {[%emt 0:17:07]} 28. axb3 {[%emt 0:01:03]} Nxc7 {[%emt 0:00:36]} 29. Bxa6 {[%emt 0:03:46]} Nxa6 {[%emt 0:00:06]} 30. Bd6 {[%emt 0:00:05]} Ng6 {[%emt 0:11:24]} 31. Rc8+ {[%emt 0:03:10]} Kh7 {[%emt 0:01:29]} 32. Ra1 {[%emt 0:00:22]} Rb7 {[%emt 0:00:38]} 33. Rxa6 {[%emt 0:00:21]} Rxb3 {[%emt 0:00:05]} 34. Ba3 {[%emt 0:00:32]} Re3 {[%emt 0:01:37]} 35. Rc1 {[%emt 0:03:19]} Re2 {[%emt 0:05:28]} 36. Rac6 {[%emt 0:00:33]} gxh2+ {[%emt 0:03:44]} (36... Rd2 $142 37. R6c2 Rd3) 37. Kh1 {[%emt 0:01:47]} Rd2 {[%emt 0:05:53]} 38. Rd6 {[%emt 0:03:23]} Re2 {[%emt 0:01:43]} 39. Rd7 {[%emt 0:00:20]} Kh6 {[%emt 0:02:25]} 40. Rc6 {[%emt 0:01:03]} h4 {[%emt 0:04:03]} 41. Rdd6 {[%emt 0:02:25]} 1-0

[Event "Karnataka State Open-ch 2018"]
[Site "Bengaluru"]
[Date "2018.04.16"]
[Round "6"]
[White "Namboothiri, K N"]
[Black "Rakshith Srinivasan"]
[Result "0-1"]
[ECO "E97"]
[WhiteElo "1712"]
[BlackElo "1597"]
[Annotator "NA RC"]
[PlyCount "66"]
[EventDate "2018.??.??"]
[EventType "swiss"]
[EventCountry "IND"]
[SourceTitle "playchess.com"]
[Source "ChessBase"]
[SourceQuality "1"]
[TimeControl "5400+30"]

1. d4 {[%emt 0:00:00]} Nf6 {[%emt 0:00:01]} 2. c4 {[%emt 0:00:00]} g6 {[%emt 0:00:05]} 3. Nc3 {[%emt 0:00:00]} Bg7 {[%emt 0:00:04]} 4. e4 {[%emt 0:00:03]} d6 {[%emt 0:00:00]} 5. Nf3 {[%emt 0:00:22]} O-O {[%emt 0:00:00]} 6. Be2 {[%emt 0:00:22]} e5 {[%emt 0:00:00]} 7. O-O {[%emt 0:01:04]} Nc6 {[%emt 0:00:00]} 8. d5 {[%emt 0:00:11]} Ne7 {[%emt 0:00:00]} 9. Nd2 {[%emt 0:03:21]} Ne8 {[%emt 0:00:26]} 10. Rb1 {[%emt 0:02:56]} f5 {[%emt 0:04:06]} 11. b4 {[%emt 0:02:16]} Nf6 {[%emt 0:05:31]} 12. f3 {[%emt 0:01:38]} f4 {[%emt 0:00:58]} 13. c5 {[%emt 0:01:30]} g5 {[%emt 0:02:18]} 14. Nc4 {[%emt 0:12:59]} Ng6 {[%emt 0:09:32]} 15. cxd6 {[%emt 0:04:13]} cxd6 {[%emt 0:00:14]} 16. b5 {[%emt 0:00:40]} Rf7 {[%emt 0:02:46]} 17. Ba3 {[%emt 0:03:41]} Bf8 {[%emt 0:01:41]} 18. Bb4 {[%emt 0:08:06]} h5 {[%emt 0:04:40]} 19. a4 {[%emt 0:06:43]} g4 {[%emt 0:07:56]} 20. Qe1 {[%emt 0:19:28]} Rg7 {[%emt 0:05:14]} 21. Rb2 {[%emt 0:03:32]} Nh7 {[%emt 0:06:46]} 22. b6 {[%emt 0:05:48]} a6 {[%emt 0:03:56]} 23. a5 {[%emt 0:02:45]} Nh4 {[%emt 0:07:48]} 24. Bd1 {[%emt 0:06:27]} Ng5 {[%emt 0:11:02]} 25. Kh1 {[%emt 0:00:22]} g3 {[%emt 0:04:05]} 26. Na2 {[%emt 0:04:56]} Nxg2 {[%emt 0:03:09]} 27. Rxg2 {[%emt 0:01:21]} Bh3 {[%emt 0:00:32]} 28. Rfg1 {[%emt 0:01:26]} Bxg2+ {[%emt 0:02:14]} 29. Rxg2 {[%emt 0:00:16]} h4 {[%emt 0:00:16]} 30. Nc1 {[%emt 0:02:40]} Rc8 {[%emt 0:01:25]} 31. Rc2 {[%emt 0:00:42]} g2+ {[%emt 0:01:03]} 32. Kxg2 {[%emt 0:01:19]} Nh3+ {[%emt 0:01:57]} 33. Kh1 {[%emt 0:01:33]} Qg5 {[%emt 0:00:12]} 0-1

[Event "Karnataka State Open-ch 2018"]
[Site "Bengaluru"]
[Date "2018.04.16"]
[Round "6"]
[White "Shashank Bhat G S"]
[Black "Prabhakaran K"]
[Result "1-0"]
[ECO "C11"]
[WhiteElo "1698"]
[BlackElo "1554"]
[Annotator "NA RC"]
[PlyCount "43"]
[EventDate "2018.??.??"]
[EventType "swiss"]
[EventCountry "IND"]
[SourceTitle "playchess.com"]
[Source "ChessBase"]
[SourceQuality "1"]
[TimeControl "5400+30"]

1. e4 {[%emt 0:00:00]} e6 {[%emt 0:00:03]} 2. d4 {[%emt 0:00:00]} d5 {[%emt 0:00:07]} 3. Nc3 {[%emt 0:00:00]} Nf6 {[%emt 0:00:04]} 4. e5 {[%emt 0:00:00]} Nfd7 {[%emt 0:00:09]} 5. f4 {[%emt 0:00:00]} c5 {[%emt 0:00:20]} 6. Nf3 {[%emt 0:00:01]} Nc6 {[%emt 0:00:30]} 7. Be3 {[%emt 0:00:15]} f6 {[%emt 0:06:41]} 8. Bb5 {[%emt 0:07:49]} fxe5 {[%emt 0:02:23]} 9. Bxc6 {[%emt 0:00:06]} bxc6 {[%emt 0:04:50]} 10. fxe5 {[%emt 0:01:05]} cxd4 {[%emt 0:00:50]} 11. Nxd4 {[%emt 0:01:02]} Nxe5 {[%emt 0:08:01]} 12. Qh5+ {[%emt 0:00:48]} Ng6 {[%emt 0:00:51]} 13. Nxc6 {[%emt 0:01:53]} Qc7 {[%emt 0:07:37]} 14. Nd4 {[%emt 0:00:53]} Bb4 {[%emt 0:02:35]} 15. O-O {[%emt 0:03:59]} Bxc3 {[%emt 0:02:49]} 16. bxc3 {[%emt 0:00:02]} Qxc3 {[%emt 0:00:16]} 17. Qe2 {[%emt 0:02:09]} Ba6 {[%emt 0:04:03]} 18. Qxa6 {[%emt 0:01:30]} Qxe3+ {[%emt 0:06:42]} 19. Kh1 {[%emt 0:00:12]} Qxd4 {[%emt 0:01:10]} 20. Qxe6+ {[%emt 0:00:07]} Ne7 {[%emt 0:10:43]} 21. Rae1 {[%emt 0:00:58]} Qb6 22. Rd1 1-0

[Event "Karnataka State Open-ch 2018"]
[Site "Bengaluru"]
[Date "2018.04.16"]
[Round "6"]
[White "Anand Vittal T R"]
[Black "Raducanu, Andrei-Augustin"]
[Result "0-1"]
[ECO "A80"]
[WhiteElo "1624"]
[BlackElo "2063"]
[Annotator "NA RC"]
[PlyCount "66"]
[EventDate "2018.??.??"]
[EventType "swiss"]
[EventCountry "IND"]
[SourceTitle "playchess.com"]
[Source "ChessBase"]
[SourceQuality "1"]
[TimeControl "5400+30"]

{[%evp 8,59,32,32767,32767,48,32767,11,3,-18,-3,32767,0,-50,-31,32767,-62,-83,-39,-141,-141,-144,-155,-142,-102,-120,-140,-140,-129,32767,32767,32767,32767,-151,-157,-208,-202,-226,-221,-235,-250,-254,-246,-239,-228,-262,-152,-158,-116,-132,-130,-236,-191,-228]} 1. d4 {[%emt 0:00:00]} f5 {[%emt 0:01:06]} 2. Nf3 {[%emt 0:01:04]} Nf6 {[%emt 0:00:09]} 3. Bf4 {[%emt 0:01:45]} g6 {[%emt 0:00:09]} 4. e3 {[%emt 0:00:34]} Bg7 {[%emt 0:00:16] LiveBook: 55 Games} 5. Nbd2 {[%emt 0:01:40]} d6 {[%emt 0:01:26] A80: Dutch Defence: Unusual White second moves} (5... O-O 6. h3 d6 7. Be2 Nc6 8. Bh2 e6 9. O-O Qe7 10. c3 a5 11. a3 b6 12. c4 e5 13. c5 bxc5 14. dxc5 {0-1 (54) Bromberger,S (2532)-Georgiadis,N (2473) Austria 2016}) 6. Bc4 {[%emt 0:02:19]} e6 {[%emt 0:02:46]} 7. Qe2 {[%emt 0:02:02]} Qe7 {[%emt 0:06:57]} 8. Bb3 $146 {[%emt 0:02:23]} ({Find the theoretical novelty and annotate with similar games:} 8. h3 Nc6 9. O-O-O Bd7 10. Rhg1 O-O-O 11. Bh2 e5 12. dxe5 dxe5 {½-½ (50) Olejarczyk,B (2159)-Szymczak,R (2051) Warsaw 2009}) 8... Nc6 {[%emt 0:19:07]} 9. e4 {[%emt 0:07:40]} Nh5 {[%emt 0:17:45]} 10. Bg5 {[%emt 0:03:54]} Nxd4 {[%emt 0:09:04]} 11. Qe3 {[%emt 0:19:53]} Nxf3+ {[%emt 0:03:53]} 12. Nxf3 {[%emt 0:00:10]} f4 {[%emt 0:05:57]} 13. Bxf4 {[%emt 0:02:28]} (13. Qd3 $15 Qf7 14. g4 fxg3 15. fxg3) 13... Nxf4 {[%emt 0:01:20]} 14. Qxf4 {[%emt 0:00:12]} Bxb2 {[%emt 0:00:09]} 15. Rd1 {[%emt 0:01:02]} Qf6 {[%emt 0:02:56]} 16. Ba4+ {[%emt 0:03:59]} Bd7 {[%emt 0:01:46]} 17. Bxd7+ {[%emt 0:00:14]} Kxd7 {[%emt 0:00:02]} 18. Qxf6 {[%emt 0:01:20]} Bxf6 {[%emt 0:00:04]} 19. e5 {[%emt 0:00:11]} Bg7 {[%emt 0:00:06]} 20. c4 {[%emt 0:00:27]} Ke7 {[%emt 0:00:51]} 21. exd6+ {[%emt 0:01:55]} cxd6 {[%emt 0:00:02]} 22. Kd2 {[%emt 0:00:20]} Rhc8 {[%emt 0:00:25]} 23. Kd3 {[%emt 0:00:19]} Rc5 {[%emt 0:00:07]} 24. Rb1 {[%emt 0:02:02]} b6 {[%emt 0:00:18]} 25. Rhe1 {[%emt 0:00:51]} Rac8 {[%emt 0:01:04]} 26. Rb4 {[%emt 0:00:42] [#]} b5 $1 {[%emt 0:01:46]} 27. Rxb5 {[%emt 0:01:32]} Rxb5 {[%emt 0:00:53]} 28. cxb5 {[%emt 0:00:03]} Rc3+ {[%emt 0:00:06]} 29. Ke4 {[%emt 0:02:06]} (29. Ke2 $17) 29... Ra3 {[%emt 0:00:35]} 30. Re2 $19 {[%emt 0:01:41]} Bh6 {[%emt 0:02:51]} 31. Kd4 {[%emt 0:02:08]} Kd7 {[%emt 0:02:15]} 32. Kc4 {[%emt 0:01:22]} d5+ {[%emt 0:00:12]} 33. Kb4 {[%emt 0:00:25]} Bf8# {[%emt 0:00:03]} 0-1

[Event "Karnataka State Open-ch 2018"]
[Site "Bengaluru"]
[Date "2018.04.16"]
[Round "6"]
[White "Anirudh Sharma"]
[Black "Sekhawat, Hussen"]
[Result "0-1"]
[ECO "A05"]
[WhiteElo "1381"]
[BlackElo "1915"]
[Annotator "NA RC"]
[PlyCount "86"]
[EventDate "2018.??.??"]
[EventType "swiss"]
[EventCountry "IND"]
[SourceTitle "playchess.com"]
[Source "ChessBase"]
[SourceQuality "1"]
[TimeControl "5400+30"]

{[%evp 10,80,12,32767,32767,37,32767,25,59,69,68,32767,32767,32767,32767,74,77,32767,77,41,55,33,41,22,22,20,39,37,45,14,25,18,25,12,32767,0,18,-4,0,-17,11,-7,0,-27,-17,32767,32767,32767,-78,-79,-58,-67,-55,-67,-68,-108,-105,-118,-129,-204,-188,-228,-182,-189,-195,-235,-99,-80,-87,-1264,32767,-5022,-29980]} 1. Nf3 {[%emt 0:00:00]} Nf6 {[%emt 0:00:36]} 2. g3 {[%emt 0:00:09]} g6 {[%emt 0:00:14]} 3. b3 {[%emt 0:00:57]} Bg7 {[%emt 0:00:33]} 4. Bb2 {[%emt 0:00:36]} O-O {[%emt 0:00:41]} 5. Bg2 {[%emt 0:00:31]} c5 {[%emt 0:01:35]} 6. O-O {[%emt 0:02:14]} Nc6 {[%emt 0:00:43]} 7. c4 {[%emt 0:05:19]} Rb8 {[%emt 0:01:16]} 8. d4 {[%emt 0:03:13] LiveBook: 9 Games A30: Symmetrical English: Double Fianchetto and Hedgehog} Nh5 $146 {[%emt 0:08:10]} ({Find the theoretical novelty and annotate with similar games:} 8... d5 9. dxc5 dxc4 10. Ne5 Qa5 11. Bxc6 bxc6 12. Nxc6 Qxc5 13. Nxb8 Bh3 14. Qd4 Qxd4 15. Bxd4 Bxf1 16. Kxf1 Rxb8 17. bxc4 {½-½ (28) Miron,L (2495)-Vucinic,G (2399) Budapest 2016}) 9. Qd2 {[%emt 0:07:42]} cxd4 {[%emt 0:12:39]} 10. Nxd4 {[%emt 0:02:05]} Nxd4 {[%emt 0:02:06]} 11. Bxd4 {[%emt 0:00:18]} b6 {[%emt 0:02:53]} 12. Bxg7 {[%emt 0:06:49]} Nxg7 {[%emt 0:04:59]} 13. Nc3 {[%emt 0:02:10]} d6 {[%emt 0:02:25]} 14. Nb5 {[%emt 0:05:17]} a6 {[%emt 0:02:28]} 15. Nd4 {[%emt 0:04:07]} Bb7 {[%emt 0:01:12]} 16. Nc6 {[%emt 0:01:14]} Bxc6 $1 {[%emt 0:00:10]} 17. Bxc6 {[%emt 0:00:06]} Ne6 {[%emt 0:02:11]} 18. Rfd1 {[%emt 0:02:30]} a5 {[%emt 0:08:42]} 19. a3 {[%emt 0:07:01]} Nc5 {[%emt 0:03:17]} 20. Rdb1 {[%emt 0:05:16]} Qc7 {[%emt 0:00:57]} 21. Bb5 {[%emt 0:01:56]} a4 {[%emt 0:03:03]} 22. bxa4 {[%emt 0:02:02]} Rbc8 {[%emt 0:03:06]} 23. Qb4 {[%emt 0:03:35]} f5 {[%emt 0:02:08]} 24. Rd1 {[%emt 0:02:53]} Rcd8 {[%emt 0:03:30]} 25. Rab1 {[%emt 0:04:35]} f4 {[%emt 0:01:44]} 26. Qd2 {[%emt 0:01:25]} fxg3 {[%emt 0:00:43]} 27. hxg3 {[%emt 0:00:06]} Rxf2 {[%emt 0:01:32]} 28. Qd5+ {[%emt 0:06:49]} e6 {[%emt 0:01:09]} 29. Qc6 {[%emt 0:00:50]} Qxc6 {[%emt 0:04:09]} 30. Bxc6 {[%emt 0:00:58]} Rxe2 {[%emt 0:00:34]} 31. Rxb6 {[%emt 0:00:12]} Re3 {[%emt 0:00:46]} 32. Kg2 {[%emt 0:02:19]} Rxa3 {[%emt 0:02:59]} 33. Bb5 {[%emt 0:01:12]} Ne4 {[%emt 0:01:31]} 34. Re1 {[%emt 0:04:29]} (34. c5 $17 {is a better defense.}) 34... Ra2+ {[%emt 0:05:52]} ({But not} 34... Nxg3 35. Rxe6 Nf5 36. Re1) 35. Kf3 {[%emt 0:04:21]} Ng5+ {[%emt 0:04:07]} 36. Kg4 {[%emt 0:00:28]} h6 {[%emt 0:00:21]} 37. Rh1 {[%emt 0:01:11]} Kg7 {[%emt 0:00:59]} (37... Ne4 $19 {is more deadly.} 38. Kf3 Nf2) 38. Rb7+ {[%emt 0:00:12]} Kf6 {[%emt 0:01:49]} 39. Rxh6 $2 {[%emt 0:02:44]} (39. Rf1+ $17 Ke5 40. Bc6) 39... Re2 {[%emt 0:00:44]} 40. Bc6 {[%emt 0:04:00]} d5 {[%emt 0:00:22]} 41. Kh4 Rh2+ 42. Kg4 Re2 43. Bxd5 Rxd5 0-1

[Event "Karnataka State Open-ch 2018"]
[Site "Bengaluru"]
[Date "2018.04.16"]
[Round "6"]
[White "Monosij Roy"]
[Black "Gavi, Siddayya"]
[Result "0-1"]
[ECO "C53"]
[WhiteElo "1363"]
[BlackElo "1993"]
[Annotator "NA RC"]
[PlyCount "68"]
[EventDate "2018.??.??"]
[EventType "swiss"]
[EventCountry "IND"]
[SourceTitle "playchess.com"]
[Source "ChessBase"]
[SourceQuality "1"]
[TimeControl "5400+30"]

{[%evp 8,65,62,21,47,32767,32767,32767,32767,32767,32767,32767,30,22,33,35,46,32767,3,32767,32767,32767,32767,-4,45,-253,-248,-258,-157,-176,-169,32767,32767,-250,-210,-218,-229,-243,-277,-299,-315,-294,-226,-329,-337,-673,-673,-619,-674,-699,-764,-760,-758,32767,32767,32767,32767,-29976,-800,-29973]} 1. e4 {[%emt 0:00:00]} e5 {[%emt 0:00:07]} 2. Nf3 {[%emt 0:00:00]} Nc6 {[%emt 0:00:05]} 3. Bc4 {[%emt 0:00:00]} Bc5 {[%emt 0:00:30]} 4. c3 {[%emt 0:00:00]} Bb6 {[%emt 0:00:21] LiveBook: 65 Games} 5. d3 {[%emt 0:00:47]} Qe7 {[%emt 0:00:31]} 6. Bb3 {[%emt 0:01:53]} Nf6 {[%emt 0:00:45]} 7. O-O {[%emt 0:00:33]} d6 {[%emt 0:00:20]} 8. Nbd2 {[%emt 0:00:34]} a6 {[%emt 0:01:12]} 9. Bc2 {[%emt 0:07:52]} h6 {[%emt 0:03:08]} 10. Nc4 {[%emt 0:05:54]} Ba7 {[%emt 0:00:12]} 11. h3 {[%emt 0:05:10]} g5 {[%emt 0:04:42]} 12. Nh2 {[%emt 0:20:28]} Bd7 {[%emt 0:06:00]} 13. Be3 {[%emt 0:06:13]} O-O-O {[%emt 0:08:40]} 14. a4 {[%emt 0:10:15]} d5 {[%emt 0:02:35]} 15. exd5 {[%emt 0:03:33]} Nxd5 {[%emt 0:00:17]} 16. b4 $2 {[%emt 0:01:54]} (16. Bxa7 $11 {and White has nothing to worry.} Nxa7 17. d4) 16... Nxc3 {[%emt 0:01:35]} 17. Qe1 {[%emt 0:00:41]} Nd4 {[%emt 0:00:32]} ({Not} 17... Qxb4 18. Bxa7 b6 19. Nxb6+ cxb6 {[#]} 20. Bxb6 $1 $11 {[%mdl 512]}) 18. Bxd4 {[%emt 0:03:13]} (18. b5 $17) 18... Bxd4 {[%emt 0:00:04]} 19. Nf3 {[%emt 0:00:24]} Rhe8 {[%emt 0:01:15]} 20. b5 {[%emt 0:02:02]} axb5 {[%emt 0:00:14]} 21. axb5 {[%emt 0:00:07]} Bxb5 {[%emt 0:00:06]} 22. Ra5 {[%emt 0:05:20]} c6 {[%emt 0:02:19]} 23. Nxd4 {[%emt 0:01:37]} exd4 {[%emt 0:00:12]} 24. Qa1 {[%emt 0:00:06]} Qb4 {[%emt 0:03:32]} 25. Ra8+ {[%emt 0:07:12]} (25. Ra3 $142) 25... Kc7 {[%emt 0:00:39]} 26. Ra7 $2 {[%emt 0:01:14]} (26. Rxd8 Rxd8 27. Ne5) 26... Bxc4 {[%emt 0:02:56]} 27. dxc4 {[%emt 0:00:28]} d3 {[%emt 0:00:13]} 28. Bd1 {[%emt 0:00:54]} d2 {[%emt 0:04:10]} 29. Bf3 {[%emt 0:01:33]} d1=Q {[%emt 0:00:26]} 30. Bxd1 {[%emt 0:00:11]} Rxd1 {[%emt 0:00:05]} 31. Rxd1 {[%emt 0:00:28]} Nxd1 {[%emt 0:00:06]} 32. Qg7 {[%emt 0:00:24]} Qe1+ {[%emt 0:00:08]} 33. Kh2 {[%emt 0:00:19]} Qe5+ {[%emt 0:00:07]} 34. Qxe5+ {[%emt 0:00:37]} Rxe5 {[%emt 0:00:02]} 0-1